fUSD/lending_fUSD_20250208
["ID","MTS","AMOUNT","RATE_DAILY","PERIOD"]
[352292148,1739029849503,-331.83,0.00010408,2]
[352292150,1739029849513,-500.0,0.00010408,2]
[352292152,1739029849523,-500.0,0.00010408,2]
[352292154,1739029849534,-500.0,0.00010408,2]
[352292156,1739029849544,-500.0,0.00010408,2]
[352292158,1739029849554,-500.0,0.00010408,2]
[352292160,1739029849564,-500.0,0.00010408,2]
[352292162,1739029849574,-500.0,0.00010408,2]
[352292164,1739029849584,-500.0,0.00010408,2]
[352292166,1739029849595,-500.0,0.00010408,2]
[352292168,1739029849604,-500.0,0.00010408,2]
[352292170,1739029849614,-500.0,0.00010408,2]
[352292172,1739029849624,-500.0,0.00010408,2]
[352292174,1739029849634,-500.0,0.00010408,2]
[352292176,1739029849643,-500.0,0.00010408,2]
[352292178,1739029849653,-1752.31,0.00010408,2]
[352292180,1739029849663,-500.0,0.00010408,2]
[352292182,1739029849672,-500.0,0.00010408,2]
[352292184,1739029849681,-613.38,0.00010408,2]
[352292186,1739029849690,-500.0,0.00010408,2]
[352292188,1739029849700,-500.0,0.00010408,2]
[352292190,1739029849712,-761.89,0.00010408,2]
[352292192,1739029849722,-511.31,0.00010408,2]
[352292194,1739029849732,-1035.88,0.00010408,2]
[352292196,1739029849742,-500.0,0.00010408,2]
[352292198,1739029849752,-500.0,0.00010408,2]
[352292199,1739029849762,-500.0,0.00010408,2]
[352292201,1739029849772,-835.0,0.00010408,2]
[352292203,1739029849782,-759.03,0.00010408,2]
[352292206,1739029849792,-500.0,0.00010408,2]
[352292207,1739029849802,-500.0,0.00010408,2]
[352292209,1739029849811,-500.0,0.00010408,2]
[352292211,1739029849821,-500.0,0.00010408,2]
[352292213,1739029849831,-500.0,0.00010408,2]
[352292215,1739029849840,-500.0,0.00010408,2]
[352292217,1739029849850,-653.27,0.00010408,2]
[352292219,1739029849859,-500.0,0.00010408,2]
[352292221,1739029849869,-784.94,0.00010408,2]
[352292223,1739029849878,-500.0,0.00010408,2]
[352292225,1739029849889,-505.33,0.00010408,2]
[352292227,1739029849899,-859.56,0.00010408,2]
[352292230,1739029849908,-500.0,0.00010408,2]
[352292232,1739029849919,-500.0,0.00010408,2]
[352292234,1739029849928,-500.0,0.00010408,2]
[352292236,1739029849939,-252.13833347,0.00010408,2]
[352292238,1739029849949,-500.0,0.00010408,2]
[352292240,1739029849959,-703.97,0.00010408,2]
[352292242,1739029849968,-500.0,0.00010408,2]
[352292244,1739029849978,-443.92530751,0.00010408,2]
[352292246,1739029849991,-629.45,0.00010408,2]
[352292248,1739029850000,-500.0,0.00010408,2]
[352292250,1739029850010,-500.0,0.00010408,2]
[352292252,1739029850020,-500.0,0.00010408,2]
[352292254,1739029850029,-500.0,0.00010408,2]
[352292256,1739029850040,-500.0,0.00010408,2]
[352292258,1739029850049,-1332.38016,0.00010408,2]
[352292260,1739029850059,-269.03216644,0.00010408,2]
[352292262,1739029850068,-500.0,0.00010408,2]
[352292264,1739029850078,-500.0,0.00010408,2]
[352292266,1739029850088,-500.0,0.00010408,2]
[352292267,1739029850097,-1609.166842,0.00010408,2]
[352292269,1739029850107,-500.0,0.00010408,2]
[352292271,1739029850116,-500.0,0.00010408,2]
[352292273,1739029850125,-500.0,0.00010408,2]
[352292275,1739029850134,-500.0,0.00010408,2]
[352292277,1739029850143,-500.0,0.00010408,2]
[352292279,1739029850153,-500.0,0.00010408,2]
[352292281,1739029850162,-768.71,0.00010408,2]
[352292283,1739029850171,-500.0,0.00010408,2]
[352292285,1739029850180,-500.0,0.00010408,2]
[352292287,1739029850190,-620.14,0.00010408,2]
[352292289,1739029850199,-500.0,0.00010408,2]
[352292291,1739029850211,-830.66,0.00010408,2]
[352292293,1739029850220,-782.3,0.00010408,2]
[352292295,1739029850230,-752.08,0.00010408,2]
[352292297,1739029850240,-500.0,0.00010408,2]
[352292299,1739029850249,-500.0,0.00010408,2]
[352292301,1739029850260,-710.96,0.00010408,2]
[352292304,1739029850269,-500.0,0.00010408,2]
[352292306,1739029850279,-597.14,0.00010408,2]
[352292308,1739029850288,-500.0,0.00010408,2]
[352292310,1739029850298,-500.0,0.00010408,2]
[352292312,1739029850307,-500.0,0.00010408,2]
[352292314,1739029850316,-500.0,0.00010408,2]
[352292316,1739029850326,-500.0,0.00010408,2]
[352292318,1739029850335,-850.4,0.00010408,2]
[352292320,1739029850345,-500.0,0.00010408,2]
[352292322,1739029850354,-500.0,0.00010408,2]
[352292323,1739029850364,-500.0,0.00010408,2]
[352292325,1739029850374,-500.0,0.00010408,2]
[352292328,1739029850384,-613.28,0.00010408,2]
[352292329,1739029850393,-851.94,0.00010408,2]
[352292331,1739029850402,-500.0,0.00010408,2]
[352292333,1739029850411,-684.5,0.00010408,2]
[352292335,1739029850421,-634.16,0.00010408,2]
[352292337,1739029850431,-805.3,0.00010408,2]
[352292339,1739029850440,-500.0,0.00010408,2]
[352292341,1739029850449,-784.39,0.00010408,2]
[352292343,1739029850459,-743.27,0.00010408,2]
[352292346,1739029850469,-500.0,0.00010408,2]
[352292348,1739029850478,-500.0,0.00010408,2]
[352292350,1739029850487,-717.02,0.00010408,2]
[352292352,1739029850497,-500.0,0.00010408,2]
[352292354,1739029850507,-500.0,0.00010408,2]
[352292356,1739029850517,-822.94,0.00010408,2]
[352292358,1739029850526,-500.0,0.00010408,2]
[352292360,1739029850535,-500.0,0.00010408,2]
[352292362,1739029850545,-500.0,0.00010408,2]
[352292364,1739029850554,-681.28,0.00010408,2]
[352292366,1739029850564,-753.26,0.00010408,2]
[352292368,1739029850574,-500.0,0.00010408,2]
[352292370,1739029850583,-592.24,0.00010408,2]
[352292372,1739029850592,-500.0,0.00010408,2]
[352292374,1739029850602,-500.0,0.00010408,2]
[352292375,1739029850612,-500.0,0.00010408,2]
[352292377,1739029850621,-500.0,0.00010408,2]
[352292379,1739029850630,-500.0,0.00010408,2]
[352292381,1739029850639,-500.0,0.00010408,2]
[352292383,1739029850649,-787.74,0.00010408,2]
[352292385,1739029850658,-715.27,0.00010408,2]
[352292387,1739029850668,-927.68,0.00010408,2]
[352292389,1739029850677,-500.0,0.00010408,2]
[352292391,1739029850687,-500.0,0.00010408,2]
[352292393,1739029850696,-1770.68,0.00010408,2]
[352292395,1739029850706,-1440.53,0.00010408,2]
[352292397,1739029850715,-761.98,0.00010408,2]
[352292399,1739029850724,-500.0,0.00010408,2]
[352292401,1739029850732,-819.37,0.00010408,2]
[352292403,1739029850742,-532.8,0.00010408,2]
[352292405,1739029850751,-500.0,0.00010408,2]
[352292407,1739029850761,-729.54,0.00010408,2]
[352292410,1739029850780,-500.0,0.00010408,2]
[352292412,1739029850790,-500.0,0.00010408,2]
[352292414,1739029850799,-1265.16,0.00010408,2]
[352292416,1739029850809,-500.0,0.00010408,2]
[352292418,1739029850819,-801.08,0.00010408,2]
[352292420,1739029850828,-651.29,0.00010408,2]
[352292422,1739029850837,-764.98,0.00010408,2]
[352292424,1739029850847,-500.0,0.00010408,2]
[352292426,1739029850856,-931.5,0.00010408,2]
[352292428,1739029850866,-500.0,0.00010408,2]
[352292430,1739029850875,-667.98,0.00010408,2]
[352292432,1739029850885,-500.0,0.00010408,2]
[352292434,1739029850894,-1837.09,0.00010408,2]
[352292436,1739029850904,-500.0,0.00010408,2]
[352292439,1739029850914,-1158.03,0.00010408,2]
[352292440,1739029850923,-500.0,0.00010408,2]
[352292443,1739029850933,-500.0,0.00010408,2]
[352292444,1739029850943,-1053.87,0.00010408,2]
[352292446,1739029850953,-734.1,0.00010408,2]
[352292449,1739029850963,-965.83,0.00010408,2]
[352292451,1739029850973,-836.19,0.00010408,2]
[352292453,1739029850983,-500.0,0.00010408,2]
[352292455,1739029850996,-500.0,0.00010408,2]
[352292457,1739029851006,-500.0,0.00010408,2]
[352292459,1739029851016,-500.0,0.00010408,2]
[352292461,1739029851027,-689.41,0.00010408,2]
[352292463,1739029851036,-1132.32,0.00010408,2]
[352292465,1739029851046,-575.87,0.00010408,2]
[352292467,1739029851056,-500.0,0.00010408,2]
[352292469,1739029851067,-1277.62,0.00010408,2]
[352292471,1739029851077,-500.0,0.00010408,2]
[352292474,1739029851087,-500.0,0.00010408,2]
[352292476,1739029851098,-1049.33,0.00010408,2]
[352292477,1739029851107,-1141.23,0.00010408,2]
[352292480,1739029851117,-1055.69,0.00010408,2]
[352292482,1739029851126,-1205.63,0.00010408,2]
[352292484,1739029851136,-500.0,0.00010408,2]
[352292486,1739029851146,-1051.29,0.00010408,2]
[352292488,1739029851155,-1271.41,0.00010408,2]
[352292490,1739029851165,-500.0,0.00010408,2]
[352292492,1739029851174,-1576.83,0.00010408,2]
[352292494,1739029851183,-833.37,0.00010408,2]
[352292496,1739029851193,-801.91,0.00010408,2]
[352292498,1739029851203,-782.79,0.00010408,2]
[352292500,1739029851214,-512.03,0.00010408,2]
[352292502,1739029851224,-3887.2,0.00010408,2]
[352292504,1739029851234,-822.78,0.00010408,2]
[352292506,1739029851244,-699.99,0.00010408,2]
[352292508,1739029851254,-1216.35,0.00010408,2]
[352292510,1739029851263,-500.0,0.00010408,2]
[352292512,1739029851273,-1518.7,0.00010408,2]
[352292514,1739029851282,-1526.45,0.00010408,2]
[352292516,1739029851292,-716.46,0.00010408,2]
[352292518,1739029851301,-500.0,0.00010408,2]
[352292520,1739029851310,-500.0,0.00010408,2]
[352292522,1739029851320,-1449.12,0.00010408,2]
[352292524,1739029851330,-500.0,0.00010408,2]
[352292526,1739029851339,-1242.25,0.00010408,2]
[352292528,1739029851348,-953.77,0.00010408,2]
[352292530,1739029851358,-500.0,0.00010408,2]
[352292532,1739029851367,-1789.2,0.00010408,2]
[352292534,1739029851377,-2190.86,0.00010408,2]
[352292536,1739029851387,-540.52639439,0.00010408,2]
[352292538,1739029851397,-1833.96,0.00010408,2]
[352292540,1739029851406,-500.0,0.00010408,2]
[352292542,1739029851418,-1212.7,0.00010408,2]
[352292544,1739029851427,-1073.03,0.00010408,2]
[352292546,1739029851437,-500.0,0.00010408,2]
[352292548,1739029851446,-500.0,0.00010408,2]
[352292550,1739029851455,-2836.75,0.00010408,2]
[352292552,1739029851465,-500.0,0.00010408,2]
[352292554,1739029851475,-500.0,0.00010408,2]
[352292556,1739029851485,-1026.91,0.00010408,2]
[352292558,1739029851495,-500.0,0.00010408,2]
[352292560,1739029851504,-573.52,0.00010408,2]
[352292562,1739029851514,-500.0,0.00010408,2]
[352292564,1739029851523,-873.88,0.00010408,2]
[352292566,1739029851533,-1263.29,0.00010408,2]
[352292568,1739029851542,-1831.63,0.00010408,2]
[352292570,1739029851552,-1833.24,0.00010408,2]
[352292573,1739029851562,-1734.19,0.00010408,2]
[352292575,1739029851571,-1839.49,0.00010408,2]
[352292577,1739029851581,-1465.55,0.00010408,2]
[352292579,1739029851591,-822.02,0.00010408,2]
[352292581,1739029851600,-693.55,0.00010408,2]
[352292582,1739029851610,-922.24,0.00010408,2]
[352292584,1739029851619,-817.74,0.00010408,2]
[352292587,1739029851632,-1615.42,0.00010408,2]
[352292589,1739029851642,-997.13,0.00010408,2]
[352292591,1739029851652,-2326.87,0.00010408,2]
[352292593,1739029851662,-842.51,0.00010408,2]
[352292595,1739029851672,-696.3,0.00010408,2]
[352292597,1739029851682,-500.0,0.00010408,2]
[352292599,1739029851691,-548.9,0.00010408,2]
[352292601,1739029851700,-150.8212,0.00010408,2]
[352292603,1739029851710,-822.54,0.00010408,2]
[352292605,1739029851720,-875.27,0.00010408,2]
[352292607,1739029851729,-559.88,0.00010408,2]
[352292609,1739029851739,-579.67,0.00010408,2]
[352292611,1739029851749,-671.82,0.00010408,2]
[352292614,1739029851759,-1828.54,0.00010408,2]
[352292616,1739029851769,-907.58,0.00010408,2]
[352292618,1739029851779,-1731.29,0.00010408,2]
[352292620,1739029851789,-500.0,0.00010408,2]
[352292622,1739029851799,-1124.51,0.00010408,2]
[352292624,1739029851809,-750.28,0.00010408,2]
[352292626,1739029851819,-500.0,0.00010408,2]
[352292628,1739029851830,-500.0,0.00010408,2]
[352292630,1739029851840,-500.0,0.00010408,2]
[352292632,1739029851849,-500.0,0.00010408,2]
[352292634,1739029851859,-500.0,0.00010408,2]
[352292636,1739029851868,-642.3,0.00010408,2]
[352292638,1739029851878,-859.51,0.00010408,2]
[352292640,1739029851888,-500.0,0.00010408,2]
[352292642,1739029851897,-500.0,0.00010408,2]
[352292644,1739029851907,-527.94,0.00010408,2]
[352292646,1739029851916,-500.0,0.00010408,2]
[352292647,1739029851925,-500.0,0.00010409,2]
[352292649,1739029851935,-689.51,0.00010409,2]
[352292651,1739029851945,-500.0,0.00010409,2]
[352292653,1739029851955,-500.0,0.00010409,2]
[352292655,1739029851964,-500.0,0.00010409,2]
[352292657,1739029851974,-500.0,0.00010409,2]
[352292659,1739029851984,-500.0,0.00010409,2]
[352292661,1739029851998,-2962.06374862,0.00010421,2]
[352292663,1739029852007,-1050.25,0.00010444,2]
[352292665,1739029852017,-1900.0,0.000105,3]
[352292667,1739029852027,-514.25,0.00010543,2]
[352292669,1739029852036,-202.8868615,0.00010544,3]
[352292670,1739029852046,-1017.97243575,0.00010544,3]
[352292673,1739029852056,-1037.91,0.00010544,2]
[352292674,1739029852067,-1089.03,0.00010544,2]
[352292677,1739029852076,-610.61,0.00010544,2]
[352292679,1739029852087,-944.35,0.00010544,2]
[352292681,1739029852097,-1320.96,0.00010544,2]
[352292682,1739029852106,-500.0,0.00010544,2]
[352292684,1739029852115,-1872.53,0.00010544,2]
[352292686,1739029852126,-5826.85,0.00010544,2]
[352292688,1739029852136,-822.47,0.00010544,2]
[352292690,1739029852145,-1083.85,0.00010544,2]
[352292692,1739029852154,-856.92,0.00010544,2]
[352292694,1739029852164,-747.76,0.00010544,2]
[352292696,1739029852173,-1899.2,0.00010544,2]
[352292697,1739029852183,-500.0,0.00010544,2]
[352292698,1739029852193,-578.76,0.00010544,2]
[352292699,1739029852203,-1371.67,0.00010544,2]
[352292700,1739029852215,-1529.31,0.00010544,2]
[352292701,1739029852224,-1000.0,0.00010544,2]
[352292702,1739029852235,-994.44,0.00010544,2]
[352292703,1739029852245,-1626.66,0.00010544,2]
[352292704,1739029852255,-1757.66,0.00010544,2]
[352292705,1739029852265,-500.0,0.00010545,2]
[352292706,1739029852275,-500.0,0.00010545,2]
[352292707,1739029852284,-500.0,0.00010545,2]
[352292708,1739029852294,-500.0,0.00010545,2]
[352292709,1739029852303,-500.0,0.00010545,2]
[352292710,1739029852317,-211.0981786,0.00010545,2]
[352292711,1739029852327,-500.0,0.00010545,2]
[352292712,1739029852337,-500.0,0.00010545,2]
[352292714,1739029852346,-519.6244876,0.00010545,2]
[352292715,1739029852355,-500.0,0.00010545,2]
[352292718,1739029852365,-215.11865122,0.00010545,2]
[352292720,1739029852375,-500.0,0.00010545,2]
[352292722,1739029852386,-500.0,0.00010545,2]
[352292724,1739029852395,-500.0,0.00010545,2]
[352292726,1739029852405,-500.0,0.00010545,2]
[352292728,1739029852415,-500.0,0.00010545,2]
[352292730,1739029852424,-500.0,0.00010545,2]
[352292732,1739029852434,-500.0,0.00010545,2]
[352292734,1739029852443,-500.0,0.00010545,2]
[352292736,1739029852453,-500.0,0.00010545,2]
[352292738,1739029852463,-1752.31,0.00010545,2]
[352292740,1739029852473,-500.0,0.00010545,2]
[352292742,1739029852483,-500.0,0.00010545,2]
[352292744,1739029852493,-613.38,0.00010545,2]
[352292746,1739029852503,-500.0,0.00010545,2]
[352292748,1739029852513,-500.0,0.00010545,2]
[352292750,1739029852522,-761.89,0.00010545,2]
[352292752,1739029852532,-511.31,0.00010545,2]
[352292754,1739029852541,-1035.88,0.00010545,2]
[352292756,1739029852551,-500.0,0.00010545,2]
[352292758,1739029852561,-500.0,0.00010545,2]
[352292760,1739029852570,-500.0,0.00010545,2]
[352292762,1739029852580,-835.0,0.00010545,2]
[352292764,1739029852590,-759.03,0.00010545,2]
[352292766,1739029852600,-500.0,0.00010545,2]
[352292768,1739029852610,-500.0,0.00010545,2]
[352292770,1739029852619,-500.0,0.00010545,2]
[352292772,1739029852629,-500.0,0.00010545,2]
[352292774,1739029852638,-500.0,0.00010545,2]
[352292776,1739029852648,-500.0,0.00010545,2]
[352292778,1739029852658,-653.27,0.00010545,2]
[352292780,1739029852668,-500.0,0.00010545,2]
[352292782,1739029852678,-784.94,0.00010545,2]
[352292784,1739029852687,-500.0,0.00010545,2]
[352292786,1739029852697,-505.33,0.00010545,2]
[352292789,1739029852707,-859.56,0.00010545,2]
[352292791,1739029852716,-500.0,0.00010545,2]
[352292793,1739029852727,-500.0,0.00010545,2]
[352292794,1739029852737,-500.0,0.00010545,2]
[352292797,1739029852747,-500.0,0.00010545,2]
[352292799,1739029852758,-703.97,0.00010545,2]
[352292801,1739029852768,-500.0,0.00010545,2]
[352292803,1739029852779,-629.45,0.00010545,2]
[352292805,1739029852789,-500.0,0.00010545,2]
[352292807,1739029852799,-141.81144282,0.00010545,2]
[352292841,1739029853123,-358.18855718,0.00010545,2]
[352292844,1739029853133,-500.0,0.00010545,2]
[352292846,1739029853144,-500.0,0.00010545,2]
[352292848,1739029853153,-500.0,0.00010545,2]
[352292850,1739029853162,-1141.81144282,0.00010545,2]
[352292918,1739029854442,500.0,9.997e-05,2]
[352293037,1739029857866,500.0,9.997e-05,2]
[352293038,1739029860202,639.6,9.997e-05,2]
[352293039,1739029871294,500.0,9.997e-05,2]
[352293040,1739029874532,500.0,9.997e-05,2]
[352293041,1739029876566,500.0,9.997e-05,2]
[352293042,1739029880985,500.0,9.997e-05,2]
[352293044,1739029888670,423.3918,8.699e-05,2]
[352293045,1739029899611,166.85,9.677e-05,2]
[352293046,1739029902817,325.26,9.677e-05,2]
[352293047,1739029905971,500.0,9.997e-05,2]
[352293048,1739029907064,827.5753,8.699e-05,2]
[352293049,1739029917570,1064.27,8.219e-05,2]
[352293050,1739029922894,5787.961,8.836e-05,2]
[352293051,1739029929057,500.0,9.997e-05,2]
[352293052,1739029931987,1000.0,9.999e-05,2]
[352293053,1739029932744,788.98,9.645e-05,2]
[352293054,1739029932866,500.0,9.997e-05,2]
[352293055,1739029940805,500.0,9.997e-05,2]
[352293056,1739029959743,984.31,9.662e-05,2]
[352293057,1739029959863,311.91,9.65e-05,2]
[352293058,1739029968840,3874.0724,8.973e-05,2]
[352293059,1739030082167,717.44,9.65e-05,2]
[352293060,1739030092683,561.97,9.65e-05,2]
[352293061,1739030103976,185.0,9.65e-05,30]
[352293062,1739030104275,185.0,0.000103,30]
[352293063,1739030104880,185.0,0.0001095,30]
[352293064,1739030104961,185.0,0.000116,30]
[352293065,1739030105225,185.0,0.0001225,30]
[352293066,1739030105525,185.0,0.000129,30]
[352293067,1739030173027,200.0,9.631e-05,2]
[352293068,1739030254814,500.0,0.0002,120]
[352293069,1739030255044,263.46,0.0002,120]
[352293070,1739030408063,153.0,9.65e-05,30]
[352293071,1739030408363,153.0,0.00010376,30]
[352293072,1739030408795,153.0,0.00011103,30]
[352293073,1739030409126,153.0,0.00011829,30]
[352293074,1739030409572,153.0,0.00012556,30]
[352293075,1739030610777,150.0,0.0001994,120]
[352293076,1739030670746,150.0,0.000196,120]
[352293077,1739030679937,-904.6015537,0.00010034,2]
[352293078,1739030679959,-1000.0,0.00010096,2]
[352293079,1739030679981,-400.0,0.000101,3]
[352293080,1739030680004,-300.0,0.000101,3]
[352293081,1739030680025,-500.0,0.00010117,2]
[352293082,1739030680046,-150.0,0.00010133,2]
[352293083,1739030680068,-564.11,0.00010133,2]
[352293084,1739030680090,-1787.14,0.00010133,2]
[352293085,1739030680111,-500.0,0.00010134,2]
[352293086,1739030680132,-500.0,0.00010134,2]
[352293087,1739030680152,-500.0,0.00010134,2]
[352293088,1739030680173,-500.0,0.00010134,2]
[352293089,1739030680194,-500.0,0.00010134,2]
[352293090,1739030680217,-500.0,0.00010134,2]
[352293091,1739030680241,-264.85936417,0.00010134,2]
[352293092,1739030680268,-249.17267973,0.00010134,2]
[352293093,1739030680290,-500.0,0.00010134,2]
[352293094,1739030680312,-500.0,0.00010134,2]
[352293095,1739030680333,-500.0,0.00010134,2]
[352293096,1739030680354,-500.0,0.00010134,2]
[352293097,1739030680375,-500.0,0.00010134,2]
[352293098,1739030680395,-500.0,0.00010134,2]
[352293099,1739030680417,-500.0,0.00010134,2]
[352293100,1739030680438,-500.0,0.00010134,2]
[352293101,1739030680459,-500.0,0.00010134,2]
[352293102,1739030680480,-504.71974918,0.00010134,2]
[352293103,1739030680501,-500.0,0.00010134,2]
[352293104,1739030680523,-500.0,0.00010134,2]
[352293105,1739030680544,-500.0,0.00010134,2]
[352293106,1739030680812,-500.0,0.00010134,2]
[352293107,1739030680834,-500.0,0.00010134,2]
[352293108,1739030680857,-500.0,0.00010134,2]
[352293109,1739030680879,-500.0,0.00010134,2]
[352293110,1739030680900,-500.0,0.00010134,2]
[352293111,1739030680922,-500.0,0.00010134,2]
[352293112,1739030680944,-500.0,0.00010134,2]
[352293113,1739030680967,-500.0,0.00010134,2]
[352293114,1739030680988,-500.0,0.00010134,2]
[352293115,1739030681009,-500.0,0.00010134,2]
[352293116,1739030681030,-500.0,0.00010134,2]
[352293117,1739030681052,-500.0,0.00010134,2]
[352293118,1739030681074,-500.0,0.00010134,2]
[352293119,1739030681094,-500.0,0.00010134,2]
[352293120,1739030681116,-500.0,0.00010134,2]
[352293121,1739030681136,-500.0,0.00010134,2]
[352293122,1739030681159,-500.0,0.00010134,2]
[352293123,1739030681181,-500.0,0.00010134,2]
[352293124,1739030681203,-500.0,0.00010134,2]
[352293125,1739030681227,-500.0,0.00010134,2]
[352293126,1739030681248,-500.0,0.00010134,2]
[352293127,1739030681273,-500.0,0.00010134,2]
[352293128,1739030681295,-500.0,0.00010134,2]
[352293129,1739030681315,-503.48231636,0.00010134,2]
[352293130,1739030681336,-500.0,0.00010134,2]
[352293131,1739030681359,-500.0,0.00010134,2]
[352293132,1739030681380,-500.0,0.00010134,2]
[352293133,1739030681401,-500.0,0.00010134,2]
[352293134,1739030681422,-500.0,0.00010134,2]
[352293135,1739030681443,-500.0,0.00010134,2]
[352293136,1739030681466,-500.0,0.00010134,2]
[352293137,1739030681487,-500.0,0.00010134,2]
[352293138,1739030681509,-500.0,0.00010134,2]
[352293139,1739030681530,-500.0,0.00010134,2]
[352293140,1739030681552,-838.57,0.00010134,2]
[352293141,1739030681573,-500.0,0.00010134,2]
[352293142,1739030681595,-500.0,0.00010134,2]
[352293143,1739030681617,-500.0,0.00010134,2]
[352293144,1739030681638,-500.0,0.00010134,2]
[352293145,1739030681660,-500.0,0.00010134,2]
[352293146,1739030681681,-500.0,0.00010134,2]
[352293147,1739030681703,-500.0,0.00010134,2]
[352293148,1739030681726,-562.8,0.00010134,2]
[352293149,1739030681747,-500.0,0.00010134,2]
[352293150,1739030681770,-500.0,0.00010134,2]
[352293151,1739030681791,-500.0,0.00010134,2]
[352293152,1739030681812,-500.0,0.00010134,2]
[352293153,1739030681834,-500.0,0.00010134,2]
[352293154,1739030681856,-500.0,0.00010134,2]
[352293155,1739030681877,-500.0,0.00010134,2]
[352293156,1739030681898,-599.56517777,0.00010134,2]
[352293157,1739030681920,-500.0,0.00010134,2]
[352293158,1739030681942,-500.0,0.00010134,2]
[352293159,1739030681964,-500.0,0.00010134,2]
[352293160,1739030681985,-500.0,0.00010134,2]
[352293161,1739030682007,-500.0,0.00010134,2]
[352293162,1739030682029,-500.89091201,0.00010134,2]
[352293163,1739030682053,-500.0,0.00010134,2]
[352293164,1739030682074,-500.0,0.00010134,2]
[352293165,1739030682096,-500.0,0.00010134,2]
[352293166,1739030682117,-500.0,0.00010134,2]
[352293167,1739030682139,-500.0,0.00010134,2]
[352293168,1739030682165,-583.94,0.00010134,2]
[352293169,1739030682188,-500.0,0.00010134,2]
[352293170,1739030682210,-722.86,0.00010134,2]
[352293171,1739030682233,-500.0,0.00010134,2]
[352293172,1739030682258,-500.0,0.00010134,2]
[352293173,1739030682280,-500.0,0.00010134,2]
[352293174,1739030682303,-686.51,0.00010134,2]
[352293175,1739030682326,-500.0,0.00010134,2]
[352293176,1739030682349,-500.0,0.00010134,2]
[352293177,1739030682372,-500.0,0.00010134,2]
[352293178,1739030682394,-500.0,0.00010134,2]
[352293179,1739030682415,-500.0,0.00010134,2]
[352293180,1739030682436,-500.0,0.00010134,2]
[352293181,1739030682458,-500.0,0.00010134,2]
[352293182,1739030682480,-500.0,0.00010134,2]
[352293183,1739030682501,-500.0,0.00010134,2]
[352293184,1739030682523,-500.0,0.00010134,2]
[352293185,1739030682544,-500.0,0.00010134,2]
[352293186,1739030682566,-500.0,0.00010134,2]
[352293187,1739030682588,-500.0,0.00010134,2]
[352293188,1739030682611,-500.0,0.00010134,2]
[352293189,1739030682633,-500.0,0.00010134,2]
[352293190,1739030682655,-509.52,0.00010134,2]
[352293191,1739030682680,-500.0,0.00010134,2]
[352293192,1739030682701,-500.0,0.00010134,2]
[352293193,1739030682724,-500.0,0.00010134,2]
[352293194,1739030682745,-466.15009537,0.00010134,2]